fUST/lending_fUST_20250722
["ID","MTS","AMOUNT","RATE_DAILY","PERIOD"]
[374014009,1753181447327,-500.0,0.00022243,2]
[374014010,1753181447337,-500.0,0.00022243,2]
[374014011,1753181447346,-500.0,0.00022243,2]
[374014012,1753181447355,-500.0,0.00022243,2]
[374014013,1753181447366,-500.0,0.00022243,2]
[374014014,1753181447376,-500.0,0.00022243,2]
[374014015,1753181447386,-500.0,0.00022243,2]
[374014016,1753181447395,-500.0,0.00022243,2]
[374014017,1753181447405,-500.0,0.00022243,2]
[374014018,1753181447415,-500.0,0.00022243,2]
[374014019,1753181447424,-500.0,0.00022243,2]
[374014020,1753181447434,-500.0,0.00022243,2]
[374014021,1753181447443,-437.60077437,0.00022243,2]
[374014022,1753181447453,-500.0,0.00022243,2]
[374014023,1753181447462,-500.50351289,0.00022243,2]
[374014024,1753181447472,-454.11957381,0.00022268,2]
[374014025,1753181447482,-1000.0,0.00022276,2]
[374014026,1753181447492,-4372.02875841,0.00022314,7]
[374014027,1753181447502,-1625.59,0.00022335,2]
[374014028,1753181447512,-2498.66,0.00022335,2]
[374014029,1753181447522,-1410.27,0.00022335,2]
[374014030,1753181447532,-930.79,0.00022335,2]
[374014031,1753181447542,-485.45,0.00022335,2]
[374014032,1753181447552,-1069.15,0.00022335,2]
[374014033,1753181447561,-299.45,0.00022335,2]
[374014034,1753181447571,-500.97,0.00022336,2]
[374014035,1753181447581,-479.89,0.00022336,2]
[374014036,1753181447591,-460.0,0.00022336,2]
[374014037,1753181447600,-460.0,0.00022336,2]
[374014038,1753181447609,-3622.45,0.00022336,2]
[374014039,1753181447619,-819.49,0.00022336,2]
[374014040,1753181447629,-511.16,0.00022337,2]
[374014041,1753181447638,-1698.54,0.00022337,2]
[374014042,1753181447648,-585.64,0.00022338,2]
[374014043,1753181447657,-743.76,0.00022338,2]
[374014044,1753181447667,-2113.34,0.00022338,2]
[374014045,1753181447677,-684.09,0.0002234,2]
[374014046,1753181447687,-2747.87,0.00022465,2]
[374014047,1753181447696,-223.0315306,0.00022557,2]
[374014048,1753181447706,-559.8,0.00022579,3]
[374014049,1753181447715,-4372.02875841,0.0002259,7]
[374014050,1753181447725,-243.174853,0.00022603,2]
[374014051,1753181447734,-1625.59,0.00022609,2]
[374014052,1753181447744,-2498.66,0.00022609,2]
[374014053,1753181447753,-1410.27,0.00022609,2]
[374014054,1753181447762,-930.79,0.00022609,2]
[374014055,1753181447774,-1069.15,0.00022609,2]
[374014056,1753181447784,-500.0,0.00022609,2]
[374014057,1753181447793,-500.97,0.0002261,2]
[374014058,1753181447803,-479.89,0.0002261,2]
[374014059,1753181447812,-411.70661808,0.0002261,2]
[374014060,1753181447822,-458.13,0.0002261,2]
[374014061,1753181447832,-3622.45,0.0002261,2]
[374014062,1753181447841,-819.49,0.0002261,2]
[374014063,1753181447850,-511.16,0.00022611,2]
[374014064,1753181447859,-1698.54,0.00022611,2]
[374014065,1753181447869,-585.64,0.00022612,2]
[374014066,1753181447878,-743.76,0.00022612,2]
[374014067,1753181447888,-2113.34,0.00022612,2]
[374014068,1753181447898,-684.09,0.00022614,2]
[374014069,1753181447908,-500.0,0.00022642,2]
[374014070,1753181447917,-1003.69047879,0.00022642,2]
[374014071,1753181447926,-500.0,0.00022642,2]
[374014072,1753181447936,-500.0,0.00022648,2]
[374014073,1753181447945,-1000.0,0.00022648,2]
[374014074,1753181447955,-503.68372735,0.00022648,2]
[374014075,1753181447963,-500.0,0.00022648,2]
[374014076,1753181447973,-500.0,0.00022648,2]
[374014077,1753181447982,-559.8,0.00022679,6]
[374014078,1753181447991,-559.8,0.00022779,2]
[374014079,1753181448001,-4372.02875841,0.00022866,8]
[374014080,1753181448010,-559.8,0.00022879,3]
[374014081,1753181448022,-1625.59,0.00022883,2]
[374014082,1753181448031,-2498.66,0.00022883,2]
[374014083,1753181448041,-1410.27,0.00022883,2]
[374014084,1753181448051,-930.79,0.00022883,2]
[374014085,1753181448060,-1069.15,0.00022883,2]
[374014086,1753181448070,-500.97,0.00022884,2]
[374014087,1753181448080,-479.89,0.00022884,2]
[374014088,1753181448089,-3622.45,0.00022884,2]
[374014089,1753181448099,-819.49,0.00022884,2]
[374014090,1753181448108,-511.16,0.00022885,2]
[374014091,1753181448118,-1698.54,0.00022885,2]
[374014092,1753181448127,-585.64,0.00022886,2]
[374014093,1753181448137,-743.76,0.00022886,2]
[374014094,1753181448146,-2113.34,0.00022886,2]
[374014095,1753181448155,-684.09,0.00022888,2]
[374014096,1753181448164,-559.81,0.00022979,3]
[374014097,1753181448178,-5000.0,0.00022984,3]
[374014098,1753181448187,-1410.14,0.00023,2]
[374014099,1753181448196,-231.06963584,0.00023,3]
[374014100,1753181448206,-160.0,0.00023,3]
[374014101,1753181448215,-160.0,0.00023,3]
[374014102,1753181448224,-839.90542673,0.00023,3]
[374014103,1753181448233,-160.0,0.00023,3]
[374014104,1753181448243,-160.0,0.00023,2]
[374014105,1753181448252,-215.80012421,0.00023,3]
[374014106,1753181448262,-160.0,0.00023,3]
[374014107,1753181448272,-160.0,0.00023,3]
[374014108,1753181448281,-898.02,0.000231,7]
[374014109,1753181448292,-4372.02875841,0.00023141,8]
[374014110,1753181448301,-1625.70522587,0.00023156,2]
[374014111,1753181448311,-2498.66393868,0.00023156,2]
[374014112,1753181448321,-1410.32,0.00023156,2]
[374014113,1753181448333,-930.97,0.00023156,2]
[374014114,1753181448344,-1069.19,0.00023156,2]
[374014115,1753181448353,-501.09,0.00023158,2]
[374014116,1753181448363,-479.93,0.00023158,2]
[374014117,1753181448373,-3622.47515951,0.00023158,2]
[374014118,1753181448382,-819.63,0.00023158,2]
[374014119,1753181448394,-511.27,0.00023159,2]
[374014120,1753181448404,-1698.76,0.00023159,2]
[374014121,1753181448439,-585.78,0.0002316,2]
[374014122,1753181448448,-743.87501914,0.0002316,2]
[374014123,1753181448458,-2113.37615769,0.0002316,2]
[374014124,1753181448468,-684.3,0.00023162,2]
[374014125,1753181448477,-1500.0,0.00023196,2]
[374014126,1753181448487,-151.0,0.00023334,7]
[374014127,1753181448496,-151.0,0.00023334,7]
[374014128,1753181448506,-151.0,0.00023334,7]
[374014129,1753181448516,-31711.96,0.000234,2]
[374014130,1753181448526,-4372.02875841,0.00023417,9]
[374014131,1753181448536,-151.0,0.00023468,7]
[374014132,1753181448545,-7873.24,0.000235,7]
[374014133,1753181448555,-4372.02875841,0.00023693,9]
[374014134,1753181448565,-2660.2,0.000237,7]
[374014135,1753181448575,-2000.0,0.00023744,2]
[374014136,1753181448585,-165.0,0.00023781,11]
[374014137,1753181448594,-6558.4211572,0.00023819,2]
[374014138,1753181448604,-1312.26454849,0.000239,2]
[374014139,1753181448613,-231.28369723,0.00023926,2]
[374014140,1753181448623,-6558.4211572,0.00023954,2]
[374014141,1753181448632,-648.0,0.00023965,2]
[374014142,1753181448641,-707.69184678,0.00023965,2]
[374014143,1753181448725,-1449.30815322,0.00023965,2]
[374014144,1753181448735,-968.0,0.00023965,2]
[374014145,1753181448744,-150.0,0.00023965,2]
[374014146,1753181448754,-150.0,0.00023965,2]
[374014147,1753181448763,-233.58588643,0.00023969,10]
[374014148,1753181448777,-4138.44287198,0.00023969,10]
[374014149,1753181448786,-5019.2097,0.00024,7]
[374014150,1753181448795,-231.06963584,0.00024,7]
[374014151,1753181448804,-160.0,0.00024,7]
[374014152,1753181448813,-839.90542673,0.00024,7]
[374014153,1753181448823,-160.0,0.00024,7]
[374014154,1753181448834,-215.80012421,0.00024,7]
[374014155,1753181448844,-160.0,0.00024,7]
[374014156,1753181448853,-160.0,0.00024,7]
[374014157,1753181448863,-151.0,0.000241,9]
[374014158,1753181448872,-2980.95942947,0.0002418,2]
[374014159,1753181448883,-2329.82876048,0.0002418,2]
[374014160,1753181448895,-1247.63296725,0.0002418,2]
[374014161,1753181448904,-898.02,0.000242,7]
[374014162,1753181448914,-2200.0,0.00024242,2]
[374014163,1753181448924,-4372.02875841,0.00024245,10]
[374014164,1753181448933,-577.4526085,0.00024493,2]
[374014165,1753181448943,-163.565891,0.000245,8]
[374014166,1753181448952,-4372.02875841,0.00024521,11]
[374014167,1753181448961,-6558.4211572,0.00024657,2]
[374014168,1753181448971,-4372.02875841,0.00024797,11]
[374014169,1753181448980,-150.0,0.000248,2]
[374014170,1753181448990,-160.020993,0.000248,11]
[374014171,1753181448999,-255.47329353,0.000248,2]
[374014172,1753181449009,-5521.1369778,0.000248,2]
[374014173,1753181449018,-6558.42115721,0.00024829,2]
[374014174,1753181449028,-255.47329346,0.00024845,2]
[374014175,1753181449038,-160.020993,0.00024847,6]
[374014176,1753181449047,-255.47329346,0.00024889,2]
[374014177,1753181449056,-200.0,0.00024899,2]
[374014178,1753181449067,-151.0,0.000249,7]
[374014179,1753181449076,-249.039247,0.000249,7]
[374014180,1753181449085,-151.0,0.000249,7]
[374014181,1753181449094,-151.0,0.000249,7]
[374014182,1753181449104,-373.48961551,0.000249,2]
[374014183,1753181449116,-3127.91378065,0.000249,2]
[374014184,1753181449127,-287.70733921,0.000249,2]
[374014185,1753181449138,-767.5339905,0.000249,2]
[374014186,1753181449149,-700.51359987,0.000249,2]
[374014187,1753181449160,-6711.62854806,0.000249,2]
[374014188,1753181449447,-4278.44124995,0.000249,2]
[374014189,1753181449463,-4164.42490134,0.000249,2]
[374014190,1753181449475,-8642.98091587,0.000249,2]
[374014191,1753181449486,-14266.80284074,0.000249,2]
[374014192,1753181449543,-465.76066162,0.00016854,2]
[374014193,1753181449552,-460.0,0.00016855,2]
[374014194,1753181449563,-1006.03,0.00019872,2]
[374014195,1753181449573,-1006.03,0.00020146,2]
[374014196,1753181449582,-134.77916959,0.0002042,2]
[374014197,1753181449755,-0.01485217,0.0002042,2]
[374014198,1753181449767,-871.23597824,0.0002042,2]
[374014199,1753181449776,-5658.68817807,0.000249,2]
[374014200,1753181450169,-304.2614001,0.000249,2]
[374014201,1753181450182,-770.67,0.000249,2]
[374014202,1753181450194,-18433.6958926,0.000249,2]
[374014203,1753181450205,-715.6763441,0.000249,2]
[374014204,1753181450218,-5884.58992178,0.000249,2]
[374014205,1753181450230,-24133.10710196,0.000249,2]
[374014206,1753181450296,-460.0,0.00016855,2]
[374014207,1753181450305,-674.70122693,0.00020694,2]
[374014208,1753181450432,-460.0,0.00016854,2]
[374014209,1753181450442,-460.0,0.00016854,2]
[374014210,1753181450451,-460.0,0.00016855,2]
[374014211,1753181450461,-460.0,0.00017128,2]
[374014212,1753181450471,-460.0,0.00017402,2]
[374014213,1753181450480,-460.0,0.00017676,2]
[374014214,1753181450490,-313.09,0.0001795,2]
[374014215,1753181450499,-331.32877307,0.00020694,2]
[374014216,1753181450509,-1006.03,0.00020968,2]
[374014217,1753181450519,-281.39304267,0.00021242,2]
[374014218,1753181450530,-724.63695733,0.00021242,2]
[374014219,1753181450540,-352.11142982,0.00021516,2]
[374014220,1753181450556,-653.91857018,0.00021516,2]
[374014221,1753181450565,-1006.03,0.0002179,2]
[374014222,1753181450575,-1006.03,0.00022064,2]
[374014223,1753181450585,-526.07605158,0.00023,3]
[374014224,1753181450594,-407.0,0.00023965,2]
[374014225,1753181450604,-526.07605158,0.00024,7]
[374014226,1753181450614,-908.03073356,0.000249,2]
[374014227,1753181524317,174.483466,0.00015983,2]
[374014228,1753181822944,161.629344,0.00013699,2]
[374014234,1753182236317,2972.3420647,0.00015758,2]
[374014242,1753182622247,747.72729043,0.000222,60]
[374014274,1753182632832,-151.0,0.000167,2]
[374014276,1753182632842,-660.66,0.00016749,3]
[374014278,1753182632852,-330.33,0.00016749,3]
[374014280,1753182632862,-165.16,0.00016749,3]
[374014282,1753182632872,-495.51,0.00016749,3]
[374014284,1753182632881,-248.7232296,0.00016754,2]
[374014287,1753182632893,-605.6816001,0.00016754,2]
[374014289,1753182632902,-300.0,0.00016755,2]
[374014291,1753182632911,-1200.0,0.00016755,2]
[374014293,1753182632920,-300.0,0.00016755,2]
[374014295,1753182632929,-460.0,0.00016756,2]
[374014297,1753182632939,-460.0,0.00016756,2]
[374014299,1753182632948,-460.0,0.00016756,2]
[374014301,1753182632957,-1427.33,0.00016756,2]
[374014303,1753182632966,-460.0,0.00016756,2]
[374014305,1753182632976,-460.0,0.00016756,2]
[374014307,1753182632985,-460.0,0.00016756,2]
[374014309,1753182632994,-49149.1289467,0.00016757,2]
[374014311,1753182633003,-460.0,0.00016757,2]
[374014313,1753182633013,-461.4521134,0.00016757,2]
[374014315,1753182633022,-460.0,0.00016757,2]
[374014318,1753182633031,-460.0,0.00016757,2]
[374014320,1753182633043,-283.29263174,0.00016757,2]
[374014322,1753182633052,-354.04528175,0.00016757,2]
[374014324,1753182633062,-460.0,0.00016757,2]
[374014326,1753182633071,-460.0,0.00016757,2]
[374014328,1753182633080,-460.0,0.00016757,2]
[374014330,1753182633090,-460.0,0.00016757,2]
[374014332,1753182633099,-460.0,0.00016757,2]
[374014333,1753182633108,-460.0,0.00016757,2]
[374014335,1753182633118,-1488.39,0.00016757,2]
[374014337,1753182633128,-460.0,0.00016757,2]
[374014359,1753182633336,-717.09,0.00016757,2]
[374014361,1753182633347,-2493.51,0.00016757,2]
[374014363,1753182633357,-460.0,0.00016757,2]
[374014365,1753182633367,-460.0,0.00016757,2]
[374014367,1753182633377,-829.2,0.00016757,2]
[374014369,1753182633386,-460.0,0.00016757,2]
[374014371,1753182633396,-460.0,0.00016757,2]
[374014373,1753182633405,-460.0,0.00016757,2]
[374014375,1753182633415,-460.0,0.00016757,2]
[374014377,1753182633424,-460.0,0.00016757,2]
[374014379,1753182633434,-460.0,0.00016757,2]
[374014381,1753182633443,-948.45,0.00016757,2]
[374014383,1753182633454,-539.96268388,0.00016758,2]
[374014385,1753182633465,-462.36033899,0.00016758,2]
[374014387,1753182633474,-460.0,0.00016758,2]
[374014389,1753182633484,-460.0,0.00016758,2]
[374014391,1753182633495,-462.31238432,0.00016758,2]
[374014393,1753182633504,-460.0,0.00016758,2]
[374014395,1753182633514,-460.0,0.00016758,2]
[374014397,1753182633523,-460.0,0.00016758,2]
[374014399,1753182633533,-460.0,0.00016758,2]
[374014402,1753182633543,-568.45550083,0.00016758,2]
[374014405,1753182633552,-460.0,0.00016758,2]
[374014408,1753182633561,-460.0,0.00016758,2]
[374014411,1753182633571,-460.0,0.00016758,2]
[374014413,1753182633581,-460.0,0.00016758,2]
[374014415,1753182633591,-460.0,0.00016758,2]
[374014417,1753182633601,-460.0,0.00016758,2]
[374014419,1753182633611,-323.69083466,0.00016758,2]
[374014421,1753182633620,-460.0,0.00016758,2]
[374014423,1753182633630,-460.0,0.00016758,2]
[374014425,1753182633639,-460.0,0.00016758,2]
[374014427,1753182633649,-460.0,0.00016758,2]
[374014429,1753182633659,-460.0,0.00016758,2]
[374014431,1753182633669,-460.0,0.00016758,2]
[374014433,1753182633679,-460.0,0.00016758,2]
[374014435,1753182633688,-460.0,0.00016758,2]
[374014437,1753182633699,-460.0,0.00016758,2]
[374014439,1753182633716,-460.0,0.00016758,2]
[374014441,1753182633726,-460.0,0.00016758,2]
[374014443,1753182633735,-460.0,0.00016758,2]
[374014445,1753182633745,-460.0,0.00016758,2]
[374014447,1753182633756,-460.0,0.00016758,2]
[374014449,1753182633766,-460.0,0.00016758,2]
[374014451,1753182633776,-460.0,0.00016758,2]
[374014453,1753182633785,-460.0,0.00016758,2]
[374014455,1753182633799,-460.0,0.00016758,2]
[374014457,1753182633809,-460.0,0.00016758,2]
[374014460,1753182633820,-469.92225315,0.00016758,2]
[374014462,1753182633830,-553.48507504,0.00016758,2]
[374014463,1753182633839,-460.0,0.00016758,2]
[374014465,1753182633850,-460.0,0.00016758,2]
[374014466,1753182633861,-460.0,0.00016758,2]
[374014468,1753182633870,-460.0,0.00016758,2]
[374014470,1753182633881,-460.0,0.00016758,2]
[374014471,1753182633891,-460.0,0.00016758,2]
[374014472,1753182633901,-460.0,0.00016758,2]
[374014473,1753182633910,-460.0,0.00016758,2]
[374014474,1753182633920,-460.0,0.00016758,2]
[374014475,1753182633930,-460.0,0.00016758,2]
[374014476,1753182633939,-460.0,0.00016758,2]
[374014477,1753182633949,-460.0,0.00016758,2]
[374014478,1753182633958,-460.0,0.00016758,2]
[374014479,1753182633968,-401.49,0.00016758,2]
[374014480,1753182633978,-157.39,0.00016758,2]
[374014481,1753182633987,-460.0,0.00016758,2]
[374014482,1753182633997,-460.0,0.00016758,2]
[374014483,1753182634007,-460.0,0.00016758,2]
[374014484,1753182634017,-460.0,0.00016758,2]
[374014485,1753182634026,-460.0,0.00016758,2]
[374014486,1753182634038,-460.0,0.00016758,2]
[374014487,1753182634048,-549.93,0.00016758,2]
[374014488,1753182634058,-460.0,0.00016758,2]
[374014489,1753182634068,-460.0,0.00016758,2]
[374014490,1753182634078,-460.0,0.00016758,2]
[374014491,1753182634088,-460.66391108,0.00016758,2]
[374014492,1753182634098,-460.0,0.00016758,2]
[374014493,1753182634108,-460.0,0.00016758,2]
[374014494,1753182634119,-460.0,0.00016758,2]
[374014495,1753182634129,-460.0,0.00016758,2]
[374014496,1753182634139,-460.0,0.00016758,2]
[374014497,1753182634149,-477.12709771,0.00016758,2]
[374014498,1753182634159,-460.0,0.00016758,2]
[374014499,1753182634169,-537.19383874,0.00016758,2]
[374014500,1753182634180,-460.0,0.00016758,2]
[374014501,1753182634191,-460.0,0.00016758,2]
[374014502,1753182634201,-460.0,0.00016758,2]
[374014503,1753182634212,-460.0,0.00016758,2]
[374014504,1753182634222,-470.69942342,0.00016758,2]
[374014505,1753182634232,-4116.37,0.00016758,2]
[374014506,1753182634242,-460.0,0.00016758,2]
[374014507,1753182634253,-460.0,0.00016758,2]
[374014508,1753182634262,-512.51036298,0.00016758,2]
[374014509,1753182634272,-460.0,0.00016758,2]
[374014510,1753182634281,-953.78,0.00016758,2]
[374014511,1753182634291,-460.0,0.00016758,2]
[374014512,1753182634301,-460.0,0.00016758,2]
[374014513,1753182634311,-460.0,0.00016758,2]
[374014514,1753182634321,-460.0,0.00016758,2]
[374014515,1753182634332,-819.65,0.00016758,2]
[374014516,1753182634342,-460.0,0.00016758,2]
[374014517,1753182634351,-500.0,0.00016758,2]
[374014518,1753182634362,-500.0,0.00016758,2]
[374014519,1753182634372,-500.0,0.00016758,2]
[374014520,1753182634382,-500.0,0.00016758,2]
[374014521,1753182634394,-460.0,0.00016758,2]
[374014522,1753182634405,-460.0,0.00016758,2]
[374014523,1753182634415,-460.0,0.00016758,2]
[374014524,1753182634424,-460.0,0.00016758,2]
[374014525,1753182634433,-101599.1005688,0.00016759,2]
[374014526,1753182634447,-2444.45511306,0.00016759,2]
[374014527,1753182634458,-1777.76819494,0.00016759,2]
[374014539,1753182638663,-500.0,0.00016757,2]
[374014540,1753182638672,-342.73285446,0.00016757,2]
[374014541,1753182638682,-234.46945491,0.00016757,2]
[374014542,1753182638691,-500.0,0.00016757,2]
[374014543,1753182638701,-500.0,0.00016757,2]
[374014544,1753182638714,-176.32723131,0.00016757,2]
[374014545,1753182638723,-605.76710506,0.00016757,2]
[374014546,1753182638733,-500.0,0.00016757,2]
[374014547,1753182638743,-281.35810204,0.00016757,2]
[374014548,1753182638753,-527.02,0.00016757,2]
[374014549,1753182638763,-500.0,0.00016758,2]
[374014550,1753182638773,-264.42099857,0.00016758,2]
[374014551,1753182638784,-9905.64623367,0.00016759,2]
[374014552,1753182638794,-460.0,0.00016854,2]
[374014553,1753182638804,-460.0,0.00016854,2]
[374014554,1753182638813,-460.0,0.00016854,2]
[374014555,1753182638823,-460.0,0.00016854,2]
[374014556,1753182638832,-460.0,0.00016854,2]
[374014557,1753182638841,-460.0,0.00016854,2]
[374014558,1753182638850,-460.0,0.00016854,2]
[374014559,1753182638859,-460.0,0.00016854,2]
[374014560,1753182638868,-460.0,0.00016854,2]
[374014561,1753182638878,-460.0,0.00016854,2]
[374014562,1753182638887,-460.0,0.00016854,2]
[374014563,1753182638896,-460.0,0.00016854,2]
[374014564,1753182638906,-460.0,0.00016854,2]
[374014565,1753182638915,-460.0,0.00016854,2]
[374014566,1753182638924,-460.0,0.00016854,2]
[374014567,1753182638934,-469.1914505,0.00016854,2]
[374014568,1753182638943,-460.0,0.00016854,2]
[374014569,1753182638952,-460.0,0.00016854,2]
[374014570,1753182638961,-460.0,0.00016855,2]
[374014571,1753182638970,-309.12455338,0.00016855,2]
[374014572,1753182638979,-460.0,0.00016855,2]
[374014573,1753182638988,-460.0,0.00016855,2]
[374014574,1753182638998,-460.0,0.00016855,2]
[374014575,1753182639007,-460.0,0.00016855,2]
[374014576,1753182639017,-388.59109973,0.00016855,2]
[374014577,1753182639026,-460.0,0.00016855,2]
[374014578,1753182639035,-460.0,0.00016855,2]
[374014579,1753182639044,-460.0,0.00016855,2]
[374014580,1753182639053,-460.0,0.00016855,2]
[374014581,1753182639062,-455.0,0.00016855,2]
[374014582,1753182639071,-460.0,0.00016855,2]
[374014583,1753182639080,-460.0,0.00016855,2]
[374014584,1753182639089,-477.28929628,0.00016855,2]
[374014585,1753182639098,-353.97643428,0.00016855,2]
[374014586,1753182639109,-106.02356572,0.00016855,2]
[374014587,1753182639118,-471.07513265,0.00016855,2]
[374014588,1753182639128,-460.0,0.00016855,2]
[374014589,1753182639137,-460.0,0.00016855,2]
[374014590,1753182639147,-468.05659869,0.00016855,2]
[374014591,1753182639156,-460.0,0.00016855,2]
[374014592,1753182639165,-460.0,0.00016855,2]
[374014593,1753182639174,-450.0,0.00016855,2]
[374014594,1753182639184,-460.0,0.00016855,2]
[374014595,1753182639193,-460.0,0.00016855,2]
[374014596,1753182639202,-460.0,0.00016855,2]
[374014597,1753182639212,-2108.40099445,0.00016855,2]
[374014598,1753182639223,-239.70900555,0.00016855,2]
[374014599,1753182639232,-521.13,0.00016855,2]
[374014600,1753182639241,-614.78,0.00016855,2]
[374014601,1753182639251,-462.83327977,0.00016856,2]
[374014602,1753182639261,-581.69,0.00016856,2]
[374014603,1753182639270,-460.0,0.00016856,2]
[374014604,1753182639279,-2097.99,0.00016856,2]
[374014605,1753182639288,-775.93,0.00016857,2]
[374014606,1753182639298,-277.40630608,0.00016857,2]
[374014607,1753182639307,-736.19,0.00016861,2]
[374014608,1753182639316,-4620.04839355,0.000169,2]
[374014609,1753182639326,-1896.93022168,0.00016932,2]
[374014610,1753182639335,-460.0,0.0001703,2]
[374014611,1753182639344,-460.0,0.0001703,2]
[374014612,1753182639354,-1427.33,0.0001703,2]
[374014613,1753182639363,-234.11705172,0.0001703,2]
[374014614,1753182639372,-174.31536871,0.0001703,2]
[374014615,1753182639382,-460.0,0.00017031,2]
[374014616,1753182639391,-475.36511306,0.00017031,2]
[374014617,1753182639400,-460.0,0.00017031,2]
[374014618,1753182639410,-460.0,0.00017031,2]
[374014619,1753182639419,-460.0,0.00017031,2]
[374014620,1753182639429,-460.0,0.00017031,2]
[374014621,1753182639438,-1488.39,0.00017031,2]
[374014622,1753182639448,-460.0,0.00017031,2]
[374014623,1753182639457,-717.09,0.00017031,2]
[374014624,1753182639467,-2493.51,0.00017031,2]
[374014625,1753182639476,-460.0,0.00017031,2]
[374014626,1753182639486,-365.6772773,0.00017031,2]
[374014627,1753182639495,-829.2,0.00017031,2]
[374014628,1753182639505,-460.0,0.00017031,2]
[374014629,1753182639514,-460.0,0.00017031,2]
[374014630,1753182639523,-460.0,0.00017031,2]
[374014631,1753182639533,-460.0,0.00017031,2]
[374014632,1753182639544,-460.0,0.00017031,2]
[374014633,1753182639553,-460.0,0.00017031,2]
[374014634,1753182639563,-948.45,0.00017031,2]
[374014635,1753182639573,-527.02,0.00017031,2]
[374014636,1753182639582,-465.66943416,0.00017032,2]
[374014637,1753182639591,-220.67052801,0.00017032,2]
[374014638,1753182639600,-460.0,0.00017032,2]
[374014639,1753182639610,-460.0,0.00017032,2]
[374014640,1753182639620,-460.0,0.00017032,2]
[374014641,1753182639751,-460.0,0.00017032,2]
[374014642,1753182639761,-460.0,0.00017032,2]
[374014643,1753182639770,-460.0,0.00017032,2]
[374014644,1753182639780,-460.0,0.00017032,2]
[374014645,1753182639789,-460.0,0.00017032,2]
[374014646,1753182639800,-460.0,0.00017032,2]
[374014647,1753182639809,-460.0,0.00017032,2]
[374014648,1753182639819,-262.90017451,0.00017032,2]
[374014649,1753182639828,-460.0,0.00017032,2]
[374014650,1753182639838,-460.0,0.00017032,2]
[374014651,1753182639848,-460.0,0.00017032,2]
[374014652,1753182639857,-460.0,0.00017032,2]
[374014653,1753182639867,-460.0,0.00017032,2]
[374014654,1753182639877,-460.0,0.00017032,2]
[374014655,1753182639886,-245.31138922,0.00017032,2]
[374014656,1753182639896,-460.0,0.00017032,2]
[374014657,1753182639905,-460.0,0.00017032,2]
[374014658,1753182639914,-460.0,0.00017032,2]
[374014659,1753182639924,-460.0,0.00017032,2]
[374014660,1753182639933,-273.98,0.00017032,2]
[374014661,1753182639943,-460.0,0.00017032,2]
[374014662,1753182639953,-460.0,0.00017032,2]
[374014663,1753182639963,-214.72,0.00017032,2]
[374014664,1753182639973,-460.0,0.00017032,2]
[374014665,1753182639982,-460.0,0.00017032,2]
[374014666,1753182639992,-460.0,0.00017032,2]
[374014667,1753182640001,-460.0,0.00017032,2]
[374014668,1753182640011,-460.0,0.00017032,2]
[374014669,1753182640021,-460.0,0.00017032,2]
[374014670,1753182640031,-460.0,0.00017032,2]
[374014671,1753182640042,-460.0,0.00017032,2]
[374014672,1753182640052,-1785.31966404,0.00017032,2]